Cogmind - Beta 14 @@@ ROGUE MODE // 2025.03.05 @ 11:00:06 Player: Willow Result: Destroyed by Y-45 Defender with Beam Rifle Performance ------------- Evolutions (2) 1000 Regions Visited (5) 1000 Robots Destroyed (65) 325 Value Destroyed (1917) 1917 Prototype IDs (11) 220 Alien Tech Used (0) 0 Bonus (823) 823 TOTAL SCORE: 5285 Bonus ------- High Alert Combat Kills 123 Entered Garrisons 200 Used RIF Installer 500 Cogmind --------- Core Integrity 0/550 Matter 263/300 Energy 67/100 System Corruption 0% Temperature Cool (18) Movement Treading (240) Ox1 Location -8/Garrison Parts ------- > --- POWER (1) -------- (None) > --- PROPULSION (2) --- Light Treads > --- UTILITY (6) ------ Large Storage Unit Relay Coupler [Grunt] (24) > --- WEAPON (2) ------- Light Assault Rifle > --- INVENTORY (15) --- Light Treads Improved Heat Sink Huge Storage Unit Gun Armor Relay Coupler [NC] (31) Relay Coupler [NC] (25) Relay Coupler [Swarmer] (32) Relay Coupler [Cutter] (28) Relay Coupler [Grunt] (23) Relay Coupler [Hunter] (16) Peak State ------------ > --- POWER ------------ Light Angular Momentum Engine > --- PROPULSION ------- Light Treads Light Treads > --- UTILITY ---------- Large Storage Unit Propulsion Shielding Propulsion Shielding Relay Coupler [NC] Relay Coupler [Grunt] > --- WEAPON ----------- Heavy Laser Segregator > --- INVENTORY -------- Light Treads Light Treads Improved Heat Sink Huge Storage Unit Hardened Medium Armor Plating Gun Armor Relay Coupler [NC] Relay Coupler [NC] Relay Coupler [Swarmer] Relay Coupler [Cutter] Relay Coupler [Grunt] Relay Coupler [Hunter] [Rating: 26] Favorites ----------- Power Light Nuclear Core Engine Light Ion Engine Power Core Light Nuclear Core Propulsion Light Treads Treads Light Treads Utility Light Armor Plating Device Improved Heat Sink Storage Medium Storage Unit Processor Advanced Targeting Computer Hackware Relay Coupler [Grunt] Protection Light Armor Plating Weapon Assault Rifle Energy Gun Particle Gun Energy Cannon Subdweller Beam Cannon Ballistic Gun Assault Rifle Ballistic Cannon Battle Cannon Launcher Grenade Launcher Special Weapon Mining Laser Slashing Weapon Segregator Build | -11 -10 -10 -10 -8 -8 ------- Run | Yrd Mat Min Sub Mat Gar Slots Evolved 4 | . . . . 4 . Power . | . . . . . . Propulsion . | . . . . . . Utility 4 | . . . . 4 . Weapon . | . . . . . . Parts Attached 79 | 7 8 5 10 12 37 Power 9 | 1 2 1 2 1 2 Engine 6 | 1 1 . 2 . 2 Core 3 | . 1 1 . 1 . Reactor . | . . . . . . Propulsion 12 | 2 1 1 1 2 5 Treads 12 | 2 1 1 1 2 5 Leg . | . . . . . . Wheel . | . . . . . . Hover . | . . . . . . Flight . | . . . . . . Utility 32 | 2 3 1 2 7 17 Device 8 | 1 . . 1 1 5 Storage 3 | 1 1 . . 1 . Processor 1 | . . . . 1 . Hackware 2 | . . . . . 2 Protection 18 | . 2 1 1 4 10 Artifact . | . . . . . . Weapon 26 | 2 2 2 5 2 13 Energy Gun 4 | 1 . . . . 3 Energy Cannon 1 | . . . 1 . . Ballistic Gun 15 | 1 2 1 3 1 7 Ballistic Cannon 1 | . . . . 1 . Launcher 1 | . . 1 . . . Special Weapon 1 | . . . 1 . . Impact Weapon . | . . . . . . Slashing Weapon 3 | . . . . . 3 Piercing Weapon . | . . . . . . Special Melee Weapon . | . . . . . . Unidentified Prototypes . | . . . . . . Parts Lost 30 | . 3 . . 1 26 Power 4 | . 1 . . . 3 Propulsion 4 | . . . . . 4 Utility 15 | . 2 . . 1 12 Weapon 7 | . . . . . 7 Highest Loss Streak 13 | . 1 . . 1 13 To Critical Strikes . | . . . . . . Average Slot Usage (%) 93 | . 99 100 98 90 81 Engine 5 | . 9 . 5 5 2 Core 5 | . 4 14 7 3 . Treads 24 | . 28 28 28 18 17 Device 4 | . 4 . 2 7 6 Storage 12 | . 14 14 14 9 9 Processor 1 | . . . . 8 4 Hackware 1 | . . . . . 6 Protection 13 | . 9 14 11 20 18 Energy Gun 1 | . . . . . 3 Energy Cannon 2 | . . . 6 1 . Ballistic Gun 17 | . 27 27 15 9 9 Special Weapon 2 | . . . 5 . . Peak Build Rating 26 | 7 10 10 14 23 26 Average Rating 12 | 5 7 10 10 19 19 On Entrance 10 | . 7 10 10 12 23 Naked Turns . | . . . . . . Heaviest Build 46 | 12 22 23 30 46 46 Greatest Support 40 | 40 40 40 40 40 40 Greatest Overweight (x) 1 | . . . . 1 1 Average Overweight (x) . | . . . . . . Largest Inventory Capacity 15 | 8 10 10 10 15 15 Average Capacity 11 | 7 9 10 10 10 15 Most Carried 15 | 1 10 10 10 10 15 Average Carried 9 | . 6 9 9 9 11 Final Capacity 15 | 8 10 10 10 15 15 Final Carried 10 | 1 10 10 10 10 10 Class Distribution -------------------- 52% | Mutant 47% | Scavenger-Mutant Dominant Class ---------------- Mutant | -10/Materials Mutant | -10/Mines Mutant | -10/Subcaves Scavenger-Mutant | -8/Materials Scavenger-Mutant | -8/Garrison Resources | -11 -10 -10 -10 -8 -8 ----------- Run | Yrd Mat Min Sub Mat Gar Matter Collected 2041 | 297 434 103 257 241 709 Remotely . | . . . . . . Salvage Created 2139 | 109 710 161 136 303 720 Parts 129 | 4 43 15 12 21 34 Haulers Intercepted 2 | . 2 . . . . Recyclers Shooed 1 | . 1 . . . . Parts Field Recycled . | . . . . . . Retrieved Matter . | . . . . . . Parts Self-Destructed 12 | . . . 12 . . Prevented . | . . . . . . Kills | -11 -10 -10 -10 -8 -8 ------- Run | Yrd Mat Min Sub Mat Gar Combat Hostiles Destroyed 54 | . 13 5 6 7 23 Guns 45 | . 13 5 3 1 23 Cannons 8 | . . . 3 5 . Classes Destroyed 10 | 2 4 . 1 2 1 Tunneler 3 | 2 . 1 . . . Hauler 2 | . 2 . . . . Recycler 3 | 1 1 1 . . . Watcher 3 | . 3 . . . . Swarmer 21 | . 3 3 4 . 11 Grunt 22 | . 10 2 . . 10 Brawler 1 | . . . . . 1 Sentry 7 | . . . . 6 1 Hunter 1 | . . . . 1 . Subdweller 2 | . . . 2 . . Best Kill Streak 5 | 3 5 4 3 3 4 Combat Bots Only 5 | . 5 2 3 3 4 Max Kills in Single Turn 2 | 1 2 1 1 1 2 Gunslinging 1 | . . . . . 1 Exploded . | . . . . . . Melee . | . . . . . . Uniques/NPCs Destroyed . | . . . . . . Combat | -11 -10 -10 -10 -8 -8 -------- Run | Yrd Mat Min Sub Mat Gar Hostile Shots Fired 522 | . 71 16 52 39 344 Missed 142 | . 15 4 21 10 92 Damage Taken 4924 | . 660 109 470 415 3270 Core 716 | . 74 15 64 28 535 Absorbed by Shields 31 | . . . . . 31 Redirected to Shielding 97 | . . . . . 97 Regen/Repaired (Parts) 231 | . 231 . . . . Core Remaining (%) 69 | 100 . . 38 . . Volleys Fired 258 | 9 63 11 38 20 117 Largest 2 | 2 2 2 2 2 2 Hottest 110 | 60 40 40 110 110 88 Shots Fired 433 | 18 126 21 55 40 173 Gun 373 | 18 126 19 29 20 161 Cannon 38 | . . . 6 20 12 Launcher 2 | . . 2 . . . Special 20 | . . . 20 . . Kinetic 370 | 9 126 19 29 36 151 Thermal 61 | 9 . . 26 4 22 Explosive 2 | . . 2 . . . Electromagnetic . | . . . . . . Robot Hit Streak 23 | 5 23 8 14 12 17 Robot Miss Streak 6 | 1 5 1 1 2 6 Penetration Max 1 | . . . . . 1 Secondary Targets 5 | . 1 . . . 4 Max Gunslinging Chain 1 | . 1 . . . 1 Shots Hit Robots 282 | 15 77 14 28 31 117 Core Hits 108 | 4 33 11 9 11 40 Critical Kills 1 | . . . . 1 . Critical Parts Destroyed 4 | . 2 . . . 2 Critical Strikes 7 | . 2 . 1 2 2 Meltdown 1 | . . . . 1 . Destroy 5 | . 2 . 1 . 2 Blast 1 | . . . . 1 . Melee Attacks 35 | . . . . . 35 Thermal 35 | . . . . . 35 Impact . | . . . . . . Slashing . | . . . . . . Piercing . | . . . . . . Sneak Attacks . | . . . . . . Combat Hostiles . | . . . . . . Follow-up Attacks . | . . . . . . Damage Inflicted 4308 | 110 1013 238 448 569 1930 Guns 3566 | 110 1004 181 343 226 1702 Cannons 664 | . . . 105 343 216 Explosions 52 | . . 52 . . . Melee . | . . . . . . Ramming 26 | . 9 5 . . 12 Kinetic 3784 | 52 1004 181 343 516 1688 Thermal 446 | 58 . . 105 53 230 Explosive 52 | . . 52 . . . Electromagnetic . | . . . . . . Impact . | . . . . . . Slashing . | . . . . . . Piercing . | . . . . . . Highest Corruption 2 | . 2 2 2 . . Average Corruption 1 | . 2 2 1 . . Corruption Purged 2 | . . . 2 . . Corruption Blocked . | . . . . . . Effects 31 | . 6 5 20 . . Message Errors 7 | . 2 . 5 . . Matter Fused 7 | . 2 1 4 . . Heat Flow Errors 4 | . . 1 3 . . Energy Discharges 3 | . . 1 2 . . Parts Fused 1 | . 1 . . . . Data Loss (minor) 5 | . 1 . 4 . . Data Loss (major) 2 | . . 1 1 . . Misfires 1 | . . 1 . . . Alerts 1 | . . . 1 . . Overload Shots . | . . . . . . Overflow Damage . | . . . . . . Projectiles . | . . . . . . Explosions . | . . . . . . Melee . | . . . . . . Knockbacks 8 | . . . . 1 7 Impact . | . . . . . . Kinetic 8 | . . . . 1 7 Secondary . | . . . . . . Self-Inflicted Damage . | . . . . . . Shots . | . . . . . . Rammed 8 | . 2 1 . . 5 Targets Rammed 9 | . 2 2 . . 5 Kicked . | . . . . . . Crushed 1 | . . 1 . . . Highest Temperature 226 | . 21 157 226 201 109 Average Temperature 40 | . 4 44 89 97 34 Received Heat Transfer 2073 | . 333 33 96 90 1521 Siege Activations . | . . . . . . Robots Corrupted . | . . . . . . Combat Hostiles . | . . . . . . Parts Fried . | . . . . . . Impact Corruptions . | . . . . . . Robots Melted 1 | . . . . 1 . Combat Hostiles 1 | . . . . 1 . Parts Melted 2 | . . . . 1 1 Heat Transferred 809 | 125 . . 148 74 462 Parts Sabotaged 9 | . . . . . 9 Parts Stolen . | . . . . . . Parts Stripped . | . . . . . . Power Chain Reactions . | . . . . . . Alert | -11 -10 -10 -10 -8 -8 ------- Run | Yrd Mat Min Sub Mat Gar Peak Influence 892 | 15 306 280 . 282 892 Initial 183 | . 9 68 . . 183 Average 301 | 6 110 216 . 161 533 Maximum Alert Level 3 | . 1 1 . 1 3 Low Security (%) 46 | 100 97 31 . 52 3 Level 1 26 | . 2 68 . 47 31 Level 2 14 | . . . . . 34 Level 3 12 | . . . . . 29 Level 4 . | . . . . . . Level 5 . | . . . . . . High Security . | . . . . . . Max Security . | . . . . . . Squads Dispatched 5 | . 2 . . 3 . Investigation 2 | . 2 . . . . Extermination . | . . . . . . Reinforcement . | . . . . . . Assault . | . . . . . . Garrison 3 | . . . . 3 . Intercept . | . . . . . . Searches Triggered . | . . . . . . Construction Impeded . | . . . . . . Haulers Reinforced . | . . . . . . Active Scanning Responses . | . . . . . . Cargo Convoy Interrupts . | . . . . . . Stealth | -11 -10 -10 -10 -8 -8 --------- Run | Yrd Mat Min Sub Mat Gar Distress Signals . | . . . . . . Communications Jammed . | . . . . . . Distress Signals . | . . . . . . Times Spotted 84 | . 21 8 8 8 39 Peak Tracking Total 10 | . 5 3 3 4 10 Tactical Retreats 19 | . 4 1 2 2 10 Traps | -11 -10 -10 -10 -8 -8 ------- Run | Yrd Mat Min Sub Mat Gar Traps Triggered 5 | . 2 . 1 . 2 Indirectly . | . . . . . . Trap Hack Attempts . | . . . . . . Triggered . | . . . . . . Disarmed . | . . . . . . Reprogrammed . | . . . . . . Reused . | . . . . . . Traps Extracted . | . . . . . . Installed . | . . . . . . Triggered . | . . . . . . Machines | -11 -10 -10 -10 -8 -8 ---------- Run | Yrd Mat Min Sub Mat Gar Machines Disabled 2 | . . . 1 . 1 Max in Single Turn 1 | . . . 1 . 1 Garrison Relay 2 | . . . . . 2 Machines Repaired . | . . . . . . Machines Dismantled . | . . . . . . Machines Sabotaged . | . . . . . . Overloaded Fab Kills . | . . . . . . Hacking | -11 -10 -10 -10 -8 -8 --------- Run | Yrd Mat Min Sub Mat Gar Machines Accessed 13 | . 9 . 2 1 1 Terminals 8 | . 7 . . . 1 Fabricators . | . . . . . . Repair Stations 1 | . 1 . . . . Recycling Units 1 | . 1 . . . . Scanalyzers . | . . . . . . Garrison Access 1 | . . . . 1 . Total Hacks 52 | . 36 . 13 1 2 Successful 34 | . 19 . 13 1 1 Failed 18 | . 17 . . . 1 Catastrophic 1 | . 1 . . . . Database Lockouts . | . . . . . . Manual 29 | . 29 . . . . Terminals 31 | . 29 . . . 2 Fabricators . | . . . . . . Repair Stations 6 | . 6 . . . . Recycling Units 1 | . 1 . . . . Scanalyzers . | . . . . . . Garrison Access 1 | . . . . 1 . Terminal Hacks 17 | . 3 . 13 . 1 Record 12 | . . . 12 . . Robot Analysis 1 | . 1 . . . . Terminal Index 1 | . 1 . . . . Alert Level 1 | . 1 . . . . Garrison Registry 1 | . . . . . 1 Derelict Proto ID Bank 1 | . . . 1 . . Fabricator Hacks . | . . . . . . Repair Station Hacks 6 | . 6 . . . . Scan Component 3 | . 3 . . . . Repair 3 | . 3 . . . . Recycling Unit Hacks . | . . . . . . Scanalyzer . | . . . . . . Garrison Access Hacks 1 | . . . . 1 . Unlock Access 1 | . . . . 1 . Unauthorized Hacks 10 | . 10 . . . . Terminals 9 | . 9 . . . . Botnet 4 | . 4 . . . . Skim 5 | . 5 . . . . Fabricators . | . . . . . . Repair Stations . | . . . . . . Recycling Units 1 | . 1 . . . . Tunnel 1 | . 1 . . . . Scanalyzers . | . . . . . . Garrison Access . | . . . . . . Data Cores Recovered . | . . . . . . Used . | . . . . . . Hacking Detections 8 | . 7 . . . 1 Full Trace Events . | . . . . . . Feedback Events . | . . . . . . Feedback Blocked . | . . . . . . Robot Schematics Acquired . | . . . . . . Robots Built . | . . . . . . Authchips . | . . . . . . Time . | . . . . . . Total Robot Build Rating . | . . . . . . Part Schematics Acquired . | . . . . . . Parts Built . | . . . . . . Authchips . | . . . . . . Time . | . . . . . . Total Part Build Rating . | . . . . . . Parts Repaired 3 | . 3 . . . . Time 78 | . 78 . . . . Parts Recycled . | . . . . . . Recycled Matter . | . . . . . . Retrieved Matter . | . . . . . . Retrieved Components . | . . . . . . Parts Scanalyzed . | . . . . . . Part Schematics Acquired . | . . . . . . Parts Damaged . | . . . . . . Bothacking | -11 -10 -10 -10 -8 -8 ------------ Run | Yrd Mat Min Sub Mat Gar Used RIF Installer 1 | . . . . . 1 Robots Hacked . | . . . . . . Non-combat . | . . . . . . Combat . | . . . . . . Robot Hacks Applied . | . . . . . . Relay Couplers Released 9 | . . . . . 9 Machine Destruction 9 | . . . . . 9 Attached 2 | . . . . . 2 Fabnet Peak Effective % . | . . . . . . Robots Rewired . | . . . . . . Allies Hacked . | . . . . . . Hacks Repelled . | . . . . . . Allies | -11 -10 -10 -10 -8 -8 -------- Run | Yrd Mat Min Sub Mat Gar Total Allies . | . . . . . . Largest Group . | . . . . . . Highest-Rated Group . | . . . . . . Highest-Rated Ally . | . . . . . . Total Orders . | . . . . . . Ally Attacks . | . . . . . . Total Damage . | . . . . . . Kills . | . . . . . . Allies Corrupted . | . . . . . . Allies Melted . | . . . . . . Intel | -11 -10 -10 -10 -8 -8 ------- Run | Yrd Mat Min Sub Mat Gar Robot Analysis Total 1 | . 1 . . . . Derelict Logs Recovered 1 | . . 1 . . . Drone Launches . | . . . . . . Drone Recoveries . | . . . . . . Exploration | -11 -10 -10 -10 -8 -8 ------------- Run | Yrd Mat Min Sub Mat Gar Turns Passed 5149 | 112 1124 337 1864 324 1388 Spaces Moved 2239 | 50 498 137 857 138 559 Core 5 | 5 . . . . . Treads 2234 | 45 498 137 857 138 559 Legs . | . . . . . . Wheels . | . . . . . . Hover . | . . . . . . Flight . | . . . . . . Fastest Speed 50 | 50 160 160 160 160 160 Average Speed 160 | 149 160 160 160 166 161 Slowest Speed 240 | 160 160 160 160 240 240 Overloaded Moves . | . . . . . . Propulsion Burnouts . | . . . . . . Robots Hopped . | . . . . . . Cave-ins Triggered . | . . . . . . Exploration Rate (%) 39 | 4 85 37 47 9 56 Regions Visited 5 Branch Regions 2 Pre-discovered Areas 4 | . 2 . 2 . . Known Exits Taken 3 | . . 1 1 1 . Unknown Exits Taken 2 | 1 1 . . . . Scrap Searched 3 | . . . 3 . . Spaces Dug . | . . . . . . Terrain Destroyed 16 | . . 12 1 2 1 Melee . | . . . . . . Projectile 4 | . . . 1 2 1 AOE 12 | . . 12 . . . Terrain Rammed . | . . . . . . Walls Destroyed . | . . . . . . Machines Disabled . | . . . . . . Actions | -11 -10 -10 -10 -8 -8 --------- Run | Yrd Mat Min Sub Mat Gar Total 3244 | 66 698 234 1254 197 795 Wait 543 | . 109 75 338 9 12 Move 2234 | 49 497 136 856 137 559 Hop . | . . . . . . Pick Up 49 | 1 15 2 3 8 20 Fast Attach 34 | 7 2 . 6 4 15 Attach 24 | . 4 . . 4 16 Detach 2 | . . . . . 2 Swap 22 | . 2 5 4 4 7 Drop 34 | . 4 3 9 11 7 Fire 258 | 9 63 11 38 20 117 Melee 35 | . . . . . 35 Ram . | . . . . . . Kick . | . . . . . . Crush 9 | . 2 2 . . 5 Escape Stasis . | . . . . . . Rewire . | . . . . . . Trap . | . . . . . . Miscellaneous . | . . . . . . Route ------- -11/Scrapyard -10/Materials (discovered 6 exits: *Mat x3 / [*Min x2] / Sub) -10/Mines (discovered 2 exits: Mat / *Sub) -10/Subcaves (discovered 2 exits: *Mat / Rec) -8/Materials -8/Garrison (discovered 3 exits: [*Fac x3]) History --------- Turn | Location | Event 5 | -11/Scrapyard | Discovered new exit (range 15) 113 | -11/Scrapyard | Entered Materials 241 | -10/Materials | Discovered new exit (range 16) 306 | -10/Materials | Build established: Mutant 357 | -10/Materials | Discovered new exit (range 7) 417 | -10/Materials | Repaired Lgt. Treads 550 | -10/Materials | Discovered new exit (range 15) 734 | -10/Materials | Discovered new exit (range 5) 788 | -10/Materials | Discovered new exit (range 14) 907 | -10/Materials | Loaded intel: 14 trap records 969 | -10/Materials | Learned 4 Subcaves zone layouts 1020 | -10/Materials | Learned Materials trap positions 1084 | -10/Materials | Repaired Lgt. Treads 1090 | -10/Materials | Learned Storage trap positions 1109 | -10/Materials | Learned location of 2 exits from Subcaves 1110 | -10/Materials | Repaired Assault Rifle 1139 | -10/Materials | Learned location of 2 exits from Mines 1178 | -10/Materials | Identified exit to Subcaves 1228 | -10/Materials | Learned location of Recycling (-9) 1237 | -10/Materials | Entered Mines 1238 | -10/Mines | Identified exit to Materials 1300 | -10/Mines | Assembled infested the area 1320 | -10/Mines | Learned Materials emergency access door positions 1400 | -10/Mines | Joined a pair of Derelicts in attacking an 0b10 outpost 1574 | -10/Mines | Entered Subcaves 1575 | -10/Subcaves | Identified exit to Recycling 1575 | -10/Subcaves | Identified exit to Materials 1600 | -10/Subcaves | Learned location of Zion (-6) 1600 | -10/Subcaves | Met a Zionite searching for "candidates" 1679 | -10/Subcaves | Visited Clippyterm 1684 | -10/Subcaves | Learned location of Section 7 (-2) 1684 | -10/Subcaves | Learned Factory trap positions 1761 | -10/Subcaves | Shifting Twisted Machinery released Battle Rifle 1770 | -10/Subcaves | A swath of the cavern ceiling suddenly collapsed 2379 | -10/Subcaves | Shifting Twisted Machinery released Sub. Power Source 2543 | -10/Subcaves | Core integrity fell below 50% 2862 | -10/Subcaves | Build established: Scavenger-Mutant 3131 | -10/Subcaves | A swath of the cavern ceiling suddenly collapsed 3310 | -10/Subcaves | Visited 4L-MR0's lab 3330 | -10/Subcaves | Found Gun Armor 3438 | -10/Subcaves | Entered Materials 3438 | -8/Materials | Evolved 4 slots: Utility x4 3439 | -8/Materials | Loaded intel: 16 trap records 3550 | -8/Materials | Garrison activated, responded to threat 3728 | -8/Materials | Identified exit to Garrison 3762 | -8/Materials | Entered Garrison 3814 | -8/Garrison | Garrison Relay disabled 3834 | -8/Garrison | Triggered checkpoint 3900 | -8/Garrison | Lost 3 parts (1p1u1w) 4082 | -8/Garrison | Discovered new exit (range 45) 4082 | -8/Garrison | Discovered new exit (range 14) 4082 | -8/Garrison | Discovered new exit (range 87) 4276 | -8/Garrison | Triggered checkpoint 4322 | -8/Garrison | Triggered checkpoint 4386 | -8/Garrison | Lost 3 parts (2u1w) 4569 | -8/Garrison | Garrison Relay disabled 4603 | -8/Garrison | Installed Relay Interface Framework 4926 | -8/Garrison | Triggered checkpoint 4983 | -8/Garrison | Core integrity fell below 50% 5072 | -8/Garrison | Triggered checkpoint 5125 | -8/Garrison | Core integrity fell below 20% 5150 | -8/Garrison | Destroyed by Y-45 Defender with Beam Rifle Last Messages --------------- 05046_ G-50 Soldier Carbon-fiber Leg blown off. 05051_ Acquired Lgt. Angular Momentum Engine. 05056_ Acquired Hvy. Laser. 05072_ Beams of light sweep through the air. An alarm sounds. 05076_ Lgt. Angular Momentum Engine lost to overload. 05076_ S-10 Pest Flight Unit blown off. 05076_ S-10 Pest Lgt. Assault Rifle blown off. 05084_ Lgt. Treads destroyed. 05099_ Flight Unit melted. 05099_ S-10 Pest destroyed. 05111_ Hvy. Laser destroyed. 05119_ Hrd. Medium Armor Plating destroyed. 05125_ Propulsion Shielding destroyed. 05134_ Acquired 15 matter. 05136_ Lgt. Treads destroyed. 05145_ Relay Coupler [NC] destroyed. 05147_ Acquired Lgt. Assault Rifle. 05150_ Segregator destroyed. Map ----- +----------------------------------------------------+ | ##????????# + + + #"#???????????????? | | #?######?# ######## #########???????????????? | | # ##?# #?# #??????# #???????????????????????? | | # ####""""###+######## #???????????????????????? | | # #???????????????????????? | | *= #???????????????????????? | | #???????????????????????? | | # ## ## ###########???????????????????????? | | # ## ## ###???????????????????????????????? | | " #???????????????????????????????? | | " " #???????????????????????????????? | | %" " #???????????????????????????????? | | " " #???????????????????????????????? | | #^^^## ## ###???????????????????????????????? | | #^^^## ## ############??????????????????????? | | + ^ #??????????????????????? | | + =^ #####??????????????????? | | # ^ + #????????????####### | | # ## ##++####+#### ### #????????????# "&&" | | # ##* ## #??# #??# #?# #????????????#^"&&"^ | | # ######## #??# #??# #?# #???????????## """" | | +^^^#??????# #??# #??# #?# #???????????# | | # #??????# #??# #??# ###+##??#######?# ^ # | | # #??????# #??# #??# ## #??#"""""#?# # | | # #??????# #### #### ## ##### ####^ # ^ | | # #??????# + @=Y* # | | #??????# + =Y[= | | #??????############ ######++########## """" | | #?????????????????# #????# #????????# " " | | ###+#?????????????????# #??### ###??????# " " | | ??# #?????############# #### +^ + ###????####### | | ??# #?????#""""""""""## ##"" # # ""#??????????? | | ??# #?????#"""!!!!!!"## ##"[ # # !"#??????????? | | ??# #?????#"" ## ##"[ # # ="#??????????? | | ??# #?????#"! + ##"[ # # !"#??????????? | | ### #?????#"! + ##"= # # !"#??????????? | | "## #?????#"! ## ##"] # # |"#??????????? | | ### #?????#"! ## ##"] # # ["#??????????? | | + #?????#"" ## ##"" ""#??????????? | | ###?????#"""!!!!!!"## ##"""]!!!"""#??????????? | | "##???????#""""""""""## ##""""""""""#??????????? | | #????????############# #############??????????? | | ##????????????????????# #??????????????????????? | | ??????????????????????# #??????????????????????? | | ??????????????????????# #??????????????????????? | | ??????????????????????# #??????????????????????? | | ??????????????????????# ###????????????????????? | | ??????????????????????# #????????????????????? | | ??????????????????????# < #????????????????????? | | ??????????????????????# #????????????????????? | +----------------------------------------------------+ Best States ------------- Heat Dissipation 59 Energy Generation 18 Energy Capacity 200 Matter Stores 300 Matter Capacity 300 Sight Range 16 Terrain Scan Density 10 Armor Coverage 525 Propulsion Shielding 33 Evasion (%) 40 Targeting Accuracy 8 Recoil Reduction 2 Relay Coupler Types 2 Relay Coupler Value 56 Item Schematics ----------------- None Robot Schematics ------------------ None Fabricated ------------ Nothing Alien Tech Used ----------------- None Achievements -------------- None Challenges ------------ None Game ------ Seed MappingCouplerDetector Manual? 0 Play Time 00:50:11 Cumulative 207.1 hours Start 2025.03.05 @ 06:25:03 End 2025.03.05 @ 11:00:06 Sessions 1 Manual Loads 0 Difficulty Rogue Special Mode None Game No. 99 Rogue 60 Adventurer 36 Explorer 3 Win Type - Total 6 Types 2/1/0/1/0/1/0/1/0 Lore% 67 Gallery% 66 Achievement% 64 Wizard Run 0 Options --------- Layout 1 ASCII 0 Keyboard 0 Movement Arrows Keybinds 0 Fullscreen 1 Font 24/Smallcaps Map View 50x35 Zoom Use 0% Tactical HUD 1 Map Filters NONE Filters NONE Steam 1 RUN: 38f1310c-b34b-415b-a1f6-2b5275c02d39